bitfinex-derivatives/quotes_ETHF0:USTF0_20241129
["timestamp","ask_amount","ask_price","bid_price","bid_amount"]
[1732892034505,1.2524,3632.4,3631.6,0.57]
[1732892034702,0.27519,3631.8,3631.6,0.57]
[1732892035200,1.2524,3632.4,3631.6,0.57]
[1732892035201,1.2524,3632.4,3631.6,6.39553408]
[1732892035409,0.27518,3632.0,3631.6,6.67073408]
[1732892035598,0.27519,3631.9,3631.6,6.67073408]
[1732892035798,0.27517,3632.1,3631.6,6.39553408]
[1732892035995,0.68785,3632.5,3631.6,0.57]
[1732892036205,0.2752,3631.7,3631.6,0.57]
[1732892040307,1.2854,3631.8,3631.6,0.57]
[1732892040702,3.2078,3632.3,3631.6,0.57]
[1732892040703,0.27519,3631.9,3631.6,0.57]
[1732892041110,1.3581,3632.2,3631.6,0.57]
[1732892041111,0.27519,3631.8,3631.6,0.57]
[1732892041304,1.3581,3632.2,3631.6,0.57]
[1732892041500,0.2752,3631.7,3631.6,0.57]
[1732892041712,1.3581,3632.2,3631.6,0.57]
[1732892041904,0.2752,3631.7,3631.6,0.57]
[1732892042299,0.27525,3631.1,3630.7,4.75927]
[1732892042501,0.27524,3631.1,3630.8,0.27526]
[1732892042798,1.3195,3631.6,3630.8,1.96]
[1732892043005,0.27525,3631.1,3630.8,1.96]
[1732892043198,1.334,3631.5,3630.8,1.96]
[1732892043199,0.27522,3631.4,3630.8,1.96]
[1732892043404,0.27524,3631.1,3630.8,2.23526]
[1732892043899,1.334,3631.5,3630.8,1.96]
[1732892044400,0.27522,3631.4,3631.1,0.27524]
[1732892044807,1.3195,3631.6,3631.3,0.27522]
[1732892044808,1.59471,3631.6,3631.3,0.27522]
[1732892045012,1.59471,3631.6,3631.5,0.27521]
[1732892045013,1.3195,3631.6,3631.5,0.27521]
[1732892045207,1.3195,3631.6,3630.9,3.2078]
[1732892045407,1.3195,3631.6,3631.0,0.27525]
[1732892045408,0.27521,3631.5,3631.0,0.27525]
[1732892045614,0.27524,3631.1,3631.0,0.81]
[1732892046806,0.00848044,3631.2,3631.0,1.08525]
[1732892047114,0.00848044,3631.2,3631.0,0.81]
[1732892047311,0.27524,3631.1,3631.0,0.81]
[1732892048813,0.27524,3631.1,3629.8,2.61773408]
[1732892048814,3.2078,3631.1,3630.0,1.2521]
[1732892049109,3.2078,3630.7,3630.0,1.2521]
[1732892049513,0.27531,3630.3,3630.1,0.27531]
[1732892049709,0.2753,3630.4,3630.2,0.27531]
[1732892050207,0.27531,3630.3,3630.1,0.27532]
[1732892050409,0.27531,3630.2,3630.0,1.52742]
[1732892050712,0.27532,3630.1,3630.0,1.2521]
[1732892051209,1.98043,3630.6,3629.6,3.2078]
[1732892051210,3.2078,3630.3,3629.6,0.27535]
[1732892051412,3.2078,3630.3,3629.6,1.79]
[1732892051804,0.27534,3629.8,3629.6,1.79]
[1732892052010,0.27535,3629.7,3629.6,1.79]
[1732892052413,3.2078,3630.3,3629.6,1.79]
[1732892053012,3.2078,3630.3,3630.2,0.27531]
[1732892053212,3.2078,3630.3,3630.2,0.69531]
[1732892053414,3.2078,3630.9,3630.3,0.2753]
[1732892053613,3.2078,3630.9,3630.4,42.1634]
[1732892053821,3.2078,3630.9,3630.7,0.27527]
[1732892053822,0.27526,3630.9,3630.7,0.27527]
[1732892054019,0.27526,3631.0,3630.7,0.27527]
[1732892054313,0.27526,3631.0,3630.4,42.1634]
[1732892054314,0.00848044,3631.2,3630.4,42.1634]
[1732892054519,0.00848044,3631.2,3630.4,2.0334]
[1732892054520,0.68811,3631.1,3630.4,2.0334]
[1732892054715,0.27528,3630.6,3630.4,2.30869]
[1732892055120,3.89593,3631.0,3630.4,2.0334]
[1732892055121,3.2078,3631.0,3630.4,2.0334]
[1732892055317,3.2078,3631.0,3630.5,0.27528]
[1732892055318,0.27528,3630.7,3630.5,0.27528]
[1732892055520,3.2078,3631.0,3630.5,0.46]
[1732892055521,0.27528,3630.6,3630.5,0.46]
[1732892055816,0.00848044,3631.2,3631.1,0.27524]
[1732892056016,0.00848044,3631.2,3631.1,2.72524]
[1732892056317,0.00848044,3631.2,3631.1,5.93304]
[1732892057111,1.3023,3632.1,3631.1,5.6578]
[1732892057324,1.3023,3632.1,3631.9,0.27518]
[1732892057325,1.57747,3632.1,3631.9,0.27518]
[1732892057517,1.3023,3632.1,3631.5,3.2078]
[1732892057819,3.2078,3632.2,3631.5,7.6178]
[1732892058021,3.2078,3632.2,3631.6,1.3721]
[1732892058217,7.1834,3632.7,3631.6,5.7021]
[1732892058523,12.1834,3632.7,3631.6,5.7021]
[1732892058725,3.2078,3632.3,3631.6,5.7021]
[1732892058922,3.2078,3633.1,3631.9,3.2078]
[1732892059124,0.27513,3632.6,3631.9,6.1978]
[1732892059320,0.27514,3632.5,3632.2,0.27516]
[1732892059530,4.5758,3633.1,3632.3,0.27515]
[1732892059531,0.27513,3632.6,3632.3,0.27515]
[1732892059820,0.27513,3632.6,3631.9,3.2078]
[1732892060025,0.27513,3632.6,3632.3,0.27515]
[1732892060322,4.5758,3633.1,3631.9,3.2078]
[1732892060526,4.5758,3633.1,3632.3,0.27515]
[1732892060712,0.27515,3632.5,3632.2,0.27517]
[1732892060912,4.5758,3633.1,3632.2,0.98]
[1732892061117,0.27514,3632.6,3632.3,0.27516]
[1732892061317,0.27513,3632.6,3632.3,0.27515]
[1732892061516,4.5758,3633.1,3631.9,3.2078]
[1732892061717,0.27514,3632.5,3632.2,0.27516]
[1732892061914,0.27513,3632.6,3632.3,0.27515]
[1732892062116,9.5758,3633.1,3631.9,3.2078]
[1732892062328,0.27514,3632.5,3632.2,0.27516]
[1732892062512,10.26353,3633.1,3632.2,0.27516]
[1732892062513,0.27513,3632.6,3632.3,0.27515]
[1732892062717,0.68776,3633.0,3631.9,3.2078]
[1732892062916,4.5758,3633.1,3631.9,7.0578]
[1732892063119,2.61773408,3632.9,3631.9,7.0578]
[1732892063718,0.27516,3632.2,3631.9,4.12518]
[1732892063919,0.27517,3632.1,3631.9,3.85]
[1732892064118,1.2625,3632.5,3631.9,3.85]
[1732892064320,0.27516,3632.3,3632.0,0.27517]
[1732892064522,1.2625,3632.5,3632.0,2.34517]
[1732892064822,0.27516,3632.2,3632.0,2.34517]
[1732892065123,0.27516,3632.3,3632.0,2.34517]
[1732892065326,3.2078,3632.6,3632.0,2.07]
[1732892065523,3.2078,3632.6,3632.4,0.27514]
[1732892066123,3.2078,3632.6,3631.6,5.26791]
[1732892066124,3.2078,3632.6,3631.6,4.5799]
[1732892066328,3.48293,3632.6,3631.7,0.688]
[1732892066518,3.48293,3632.6,3632.3,0.27515]
[1732892066828,3.2078,3632.6,3632.4,0.27514]
[1732892067018,3.2078,3632.6,3632.0,3.2078]
[1732892067218,3.2078,3632.6,3632.0,6.8978]
[1732892067622,3.2078,3632.6,3632.5,0.27514]
[1732892069921,0.27508,3633.3,3632.5,3.2078]
[1732892070119,0.27508,3633.3,3633.1,0.27509]
[1732892070328,12.38216744,3634.0,3633.1,1.08]
[1732892070529,0.27503,3633.9,3633.6,0.27505]
[1732892070720,0.27506,3633.6,3633.4,0.27507]
[1732892070925,0.27504,3633.8,3633.6,0.27505]
[1732892071118,0.27504,3633.8,3633.3,3.2078]
[1732892071119,0.27504,3633.8,3633.7,0.27505]
[1732892071320,7.26283,3634.0,3633.8,0.27504]
[1732892071534,6.9878,3634.0,3633.3,3.2078]
[1732892071724,0.27503,3633.9,3633.7,0.27504]
[1732892071926,3.2078,3634.0,3633.3,3.2078]
[1732892072126,0.27503,3633.9,3633.4,0.27507]
[1732892072325,0.27503,3633.9,3633.7,0.27504]
[1732892072821,0.27502,3634.0,3633.8,0.27503]
[1732892073033,3.8123,3634.4,3633.3,3.2078]
[1732892073231,0.27507,3633.4,3633.3,2.91]
[1732892073625,3.2078,3633.4,3632.3,5.21057]
[1732892073934,3.2078,3633.4,3632.3,9.33057]
[1732892074127,0.2751,3633.1,3632.9,0.27511]
[1732892074431,3.2078,3633.4,3632.9,2.35]
[1732892074630,0.2751,3633.0,3632.9,2.35]
[1732892074833,0.27509,3633.1,3632.9,2.62511]
[1732892075023,0.27509,3633.2,3633.0,0.27509]
[1732892075229,0.27508,3633.3,3633.1,0.27509]
[1732892075426,0.27508,3633.2,3633.1,2.13]
[1732892076633,4.4792,3633.4,3633.1,2.13]
[1732892077131,0.27507,3633.4,3633.2,0.27508]
[1732892077332,5.8384,3633.8,3632.8,3.2078]
[1732892077532,5.8384,3633.8,3632.8,7.1878]
[1732892077831,0.68767,3633.5,3632.8,3.98]
[1732892078035,0.27511,3632.9,3632.8,3.98]
[1732892078733,3.2078,3633.3,3632.8,3.98]
[1732892078933,6.06541772,3633.5,3632.8,3.98]
[1732892079130,0.27511,3632.9,3632.8,3.98]
[1732892080430,0.2751,3633.0,3632.8,4.25511]
[1732892080729,1.3353,3633.1,3632.8,3.98]
[1732892081127,1.3353,3633.1,3633.0,0.2751]
[1732892081324,1.3353,3633.1,3633.0,0.68]
[1732892081529,1.61039,3633.1,3633.0,0.68]
[1732892085734,0.27509,3633.1,3633.0,0.68]
[1732892086140,0.27509,3633.2,3633.0,0.9551]
[1732892086533,3.2078,3633.3,3633.0,0.68]
[1732892086740,0.27509,3633.1,3633.0,0.68]
[1732892089539,3.34482,3633.2,3632.1,1.3409]
[1732892089742,0.27512,3632.8,3632.1,5.2309]
[1732892089938,0.27512,3632.8,3632.2,0.27516]
[1732892090140,0.27512,3632.8,3632.6,0.27513]
[1732892090344,2.6571,3633.2,3632.6,2.49]
[1732892090543,0.27512,3632.7,3632.6,2.49]
[1732892090940,1.54332,3632.7,3632.6,2.49]
[1732892091547,1.2682,3632.7,3632.6,2.49]
[1732892092346,1.54332,3632.7,3632.6,2.49]
[1732892093647,1.2682,3632.7,3632.6,2.49]
[1732892093951,2.6571,3633.2,3632.6,2.49]
[1732892094249,1.3275,3633.2,3632.8,0.27511]
[1732892094549,1.3275,3633.2,3632.6,2.21659953]
[1732892094744,1.3275,3633.2,3632.7,41.07512]
[1732892095048,1.2636,3633.4,3633.1,0.27509]
[1732892095946,1.2636,3633.4,3633.0,0.2751]
[1732892096346,3.48285,3633.7,3633.1,0.27508]
[1732892096543,3.2078,3633.7,3632.9,3.2078]
[1732892096745,3.2078,3633.7,3633.2,0.27508]
[1732892096950,3.2078,3633.7,3633.3,0.27507]
[1732892097149,3.2078,3633.7,3633.1,0.27509]
[1732892097352,1.3659,3633.9,3633.3,3.2078]
[1732892097548,1.64093,3633.9,3633.3,3.48287]
[1732892097954,7.0173089,3633.9,3633.3,3.48287]
[1732892098154,1.3659,3633.9,3633.3,3.2078]
[1732892098352,5.6514189,3633.8,3633.3,3.2078]
[1732892098650,6.7422789,3633.9,3633.3,3.2078]
[1732892098855,5.3763789,3633.8,3633.3,3.48287]
[1732892099259,5.3763789,3633.7,3633.3,3.2078]
[1732892099451,5.3763789,3633.8,3633.3,3.48287]
[1732892099759,5.3763789,3633.7,3633.3,3.48287]
[1732892100055,5.3763789,3633.7,3633.3,3.2078]
[1732892100358,5.3763789,3633.6,3633.3,3.2078]
[1732892100658,5.3763789,3633.6,3632.8,4.79536424]
[1732892100854,5.3763789,3633.6,3633.5,0.27506]
[1732892101058,5.3763789,3633.8,3633.6,0.27505]
[1732892101254,6.45165468,3634.1,3633.7,1.2732]
[1732892101554,0.27503,3634.0,3633.7,1.2732]
[1732892101753,6.45165468,3634.1,3633.7,1.2732]
[1732892102059,0.27502,3634.0,3633.7,1.2732]
[1732892102259,6.45165468,3634.0,3633.7,1.2732]
[1732892102446,0.27502,3634.0,3633.7,1.2732]
[1732892102756,6.45165468,3634.0,3633.7,1.2732]
[1732892103155,6.72867468,3634.1,3633.7,1.2732]
[1732892103351,6.72667468,3634.0,3633.7,1.2732]
[1732892103656,0.002,3634.1,3633.7,1.2732]
[1732892103657,6.72867468,3634.1,3633.7,1.2732]
[1732892104155,0.27503,3634.0,3633.7,1.2732]
[1732892104355,0.27503,3633.9,3633.7,1.2732]
[1732892104557,6.45365468,3634.1,3633.7,1.2732]
[1732892104558,0.27503,3634.0,3633.7,1.2732]
[1732892104752,6.45365468,3634.1,3633.7,1.2732]
[1732892104753,0.27503,3633.9,3633.7,1.2732]
[1732892104954,5.39737684,3633.8,3633.7,1.2732]
[1732892107853,5.39737684,3633.9,3633.7,1.2732]
[1732892108260,5.39737684,3633.8,3633.7,1.2732]
[1732892108459,5.67241684,3633.8,3633.7,1.2732]
[1732892108653,5.39737684,3633.8,3633.7,1.2732]
[1732892108855,5.39737684,3633.9,3633.7,1.2732]
[1732892109057,3.2098,3634.2,3633.7,1.2732]
[1732892109058,5.67241684,3633.8,3633.7,1.2732]
[1732892109257,5.39737684,3633.8,3633.7,1.2732]
[1732892110057,5.39737684,3633.8,3633.7,1.54825]
[1732892110258,9.66145468,3634.2,3633.7,1.2732]
[1732892110562,5.39742726,3633.8,3633.7,1.2732]
[1732892111264,0.27503,3634.0,3633.7,1.2732]
[1732892111462,0.27503,3633.9,3633.7,1.2732]
[1732892111663,9.65945468,3634.2,3633.7,1.2732]
[1732892111864,0.27503,3633.9,3633.7,1.2732]
[1732892112364,0.27504,3633.8,3633.7,1.2732]
[1732892112565,0.27503,3633.9,3633.7,1.2732]
[1732892112956,6.45165468,3634.1,3633.7,1.2732]
[1732892113160,6.45165468,3634.2,3634.0,3.48282]
[1732892113359,5.39617169,3634.6,3634.2,3.2078]
[1732892113665,7.52693047,3635.5,3634.2,3.2078]
[1732892113666,5.39540355,3635.2,3634.6,0.27498]
[1732892113855,5.39540355,3635.1,3634.6,3.93]
[1732892114065,0.27524476,3635.5,3634.7,0.27497]
[1732892114066,3.2078,3635.2,3634.7,0.27497]
[1732892114260,2.5534,3635.7,3634.7,0.88]
[1732892114460,3.2078,3635.4,3634.8,0.27496]
[1732892114674,3.2078,3635.5,3634.8,3.55]
[1732892115168,2.5534,3635.7,3634.8,3.55]
[1732892115466,5.42439953,3635.5,3634.8,3.55]
[1732892115673,3.2078,3635.1,3634.8,3.55]
[1732892116268,0.27491,3635.5,3634.9,0.27495]
[1732892116470,0.27492,3635.4,3634.7,0.27497]
[1732892116675,1.2731,3635.6,3634.7,3.61]
[1732892116873,0.27491,3635.5,3634.7,3.61]
[1732892117168,0.27493,3635.3,3634.7,3.88497]
[1732892117470,3.2078,3635.4,3634.7,3.61]
[1732892117665,3.2078,3635.4,3634.7,3.88497]
[1732892117666,0.27493,3635.2,3634.7,3.88497]
[1732892117864,0.00632404,3635.1,3634.8,0.27496]
[1732892118076,0.00632404,3635.1,3634.9,0.27495]
[1732892118373,0.00632404,3635.1,3634.9,2.39]
[1732892118575,0.00632404,3635.1,3634.9,2.66495]
[1732892118773,0.00632404,3635.1,3635.0,0.27495]
[1732892119173,0.002,3634.7,3634.6,3.48278]
[1732892119475,0.00632404,3635.1,3634.6,3.7]
[1732892119770,0.27497,3634.7,3634.6,3.7]
[1732892121874,3.48277,3634.7,3634.6,3.7]
[1732892122970,3.2078,3634.7,3634.6,3.7]
[1732892123269,0.00632404,3635.1,3634.8,0.27495]
[1732892123473,0.00632404,3635.1,3634.8,0.27496]
[1732892123971,0.00632404,3635.1,3634.7,2.6394]
[1732892124168,0.00632404,3635.1,3634.9,0.27495]
[1732892124375,0.00632404,3635.1,3634.7,2.6394]
[1732892124571,0.00632404,3635.1,3634.8,0.27496]
[1732892125274,0.00632404,3635.1,3634.9,0.27495]
[1732892125470,0.00632404,3635.1,3634.7,2.6394]
[1732892125666,0.00632404,3635.1,3634.9,0.27495]
[1732892126067,0.00632404,3635.1,3634.7,2.6394]
[1732892126068,0.00632404,3635.1,3634.8,0.27496]
[1732892126462,0.00632404,3635.1,3634.8,3.14496]
[1732892126669,0.00632404,3635.1,3634.8,2.87]
[1732892126966,0.00632404,3635.1,3635.0,0.27495]
[1732892127170,0.00632404,3635.1,3635.0,3.81]
[1732892127372,0.002,3635.4,3635.0,3.81]
[1732892127670,0.002,3635.4,3635.3,0.2749]
[1732892127868,0.002,3635.4,3635.3,3.9449]
[1732892129779,0.002,3635.4,3635.3,6.16149953]
[1732892130172,3.969,3636.4,3635.3,5.88659953]
[1732892130371,3.969,3636.4,3635.7,5.42439953]
[1732892130574,3.969,3636.4,3636.1,3.2078]
[1732892130774,0.27483,3636.2,3636.1,3.2078]
[1732892130971,3.969,3636.4,3636.1,3.2078]
[1732892130972,0.27482,3636.3,3636.1,3.2078]
[1732892131175,3.2078,3636.8,3636.1,3.2078]
[1732892131578,0.27479,3636.7,3636.1,3.2078]
[1732892131770,0.27481,3636.5,3636.1,3.2078]
[1732892131973,0.27482,3636.3,3636.1,3.2078]
[1732892132174,3.2078,3636.8,3635.8,2.5679]
[1732892132380,0.27484,3636.1,3635.8,2.5679]
[1732892132772,1.2542,3636.2,3635.8,2.84276]
[1732892132984,1.2542,3636.2,3635.8,2.5679]
[1732892133477,1.2542,3636.2,3635.8,1.2668]
[1732892133876,2.76214,3636.1,3635.8,4.9268]
[1732892134080,50.0,3637.0,3636.0,3.2078]
[1732892134277,3.7415,3636.9,3636.0,3.2078]
[1732892134485,3.7415,3636.9,3636.1,1.57683]
[1732892134778,0.2748,3636.6,3636.2,0.27483]
[1732892135174,0.27479,3636.8,3636.3,0.27482]
[1732892135374,0.27479,3636.7,3636.1,1.302]
[1732892135575,0.002,3636.2,3636.1,1.57684]
[1732892135872,2.4873,3636.9,3636.5,0.2748]
[1732892136174,2.4873,3636.9,3636.6,3.2078]
[1732892136372,2.4873,3636.9,3636.6,4.4821]
[1732892136677,0.27478,3636.8,3636.6,4.4821]
[1732892137177,50.0,3637.0,3636.6,4.4821]
[1732892137375,50.0,3637.0,3636.6,3.2078]
[1732892137376,0.27478,3636.9,3636.6,3.2078]
[1732892137684,0.27478,3636.9,3636.2,2.21659953]
[1732892137685,0.2748,3636.6,3636.3,1.355]
[1732892137884,0.27481,3636.5,3636.3,2.965]
[1732892138180,1.3115,3636.8,3636.3,2.965]
[1732892138181,1.3115,3636.8,3636.3,1.61]
[1732892138376,0.27481,3636.4,3636.3,1.61]
[1732892141386,1.3115,3636.8,3636.3,1.61]
[1732892141587,1.3115,3636.8,3636.6,3.2078]
[1732892141784,0.27481,3636.5,3636.2,3.2078]
[1732892141984,0.27481,3636.5,3636.2,5.1578]
[1732892141985,0.002,3636.3,3636.2,5.1578]
[1732892142177,0.27682,3636.3,3636.2,5.1578]
[1732892142379,1.3115,3636.8,3636.2,1.95]
[1732892142577,0.27482,3636.3,3636.2,1.95]
[1732892144782,3.48262,3636.3,3636.2,1.95]
[1732892144979,5.42439953,3636.3,3634.5,44.0078]
[1732892145186,5.42439953,3636.3,3634.7,2.6593]
[1732892145187,0.27491,3635.3,3634.7,2.6593]
[1732892145482,0.27491,3635.2,3634.7,6.01424]
[1732892145877,4.0173,3635.5,3634.7,5.7393]
[1732892146077,0.2749,3635.3,3634.8,0.27494]
[1732892146277,4.0173,3635.5,3634.8,3.95493]
[1732892146477,0.27491,3635.2,3634.8,3.95493]
[1732892146677,4.0173,3635.5,3634.8,3.68]
[1732892147287,0.27489,3635.5,3635.4,3.2078]
[1732892147884,1.3539,3635.9,3635.4,3.2078]
[1732892148080,2.21659953,3636.5,3635.5,1.2666]
[1732892148284,1.3539,3636.3,3635.5,3.4529]
[1732892148688,1.3539,3636.3,3635.5,3.72778]
[1732892148689,0.27487,3635.8,3635.5,3.72778]
[1732892148884,0.27485,3635.9,3635.6,0.27487]
[1732892149184,0.27487,3635.7,3635.6,4.25]
[1732892149796,3.48267,3635.7,3635.6,4.25]
[1732892149984,3.48267,3635.7,3634.9,4.45]
[1732892149985,3.2078,3635.7,3634.9,4.45]
[1732892150185,0.27492,3635.0,3634.9,8.26]
[1732892150493,0.27492,3635.0,3634.9,5.0522]
[1732892150790,0.68735,3634.8,3634.1,3.2078]
[1732892150990,7.183,3634.7,3634.1,0.8]
[1732892151187,0.27498,3634.2,3634.1,0.8]
[1732892151383,0.68741,3634.5,3633.7,1.2422]
[1732892151584,3.2078,3634.0,3633.7,1.2422]
[1732892151791,0.68743,3634.4,3633.7,1.2422]
[1732892151986,3.2078,3634.2,3633.7,1.2422]
[1732892152186,0.27501,3633.8,3633.7,1.2422]
[1732892152386,0.27501,3633.8,3633.4,1.62174]
[1732892152387,0.27503,3633.6,3633.4,1.3467]
[1732892152590,3.2078,3634.2,3633.4,3.5167]
[1732892152591,0.27502,3633.7,3633.4,3.5167]
[1732892152783,2.21659953,3634.1,3633.4,5.7067]
[1732892152989,0.27501,3633.9,3633.4,5.98174]
[1732892153297,0.27502,3633.8,3633.4,5.7067]
[1732892153589,1.365,3634.0,3633.4,1.3467]
[1732892153787,2.6496,3633.9,3633.4,1.3467]
[1732892153994,2.6496,3633.9,3633.5,0.27503]
[1732892154296,2.6496,3633.9,3633.4,1.3467]
[1732892154491,2.21659953,3633.7,3633.4,1.3467]
[1732892154686,2.21659953,3633.7,3633.1,1.2422]
[1732892154888,3.2078,3633.8,3633.1,4.2822]
[1732892155196,0.27502,3633.7,3633.2,0.27506]
[1732892155385,3.2078,3633.8,3633.2,3.13]
[1732892156193,3.2078,3633.8,3633.6,0.27502]
[1732892156384,0.68733,3634.9,3633.6,0.27502]
[1732892156385,2.21659953,3634.6,3633.6,3.2078]
[1732892156591,3.2078,3634.4,3633.6,3.48282]
[1732892156796,0.27499,3634.1,3633.6,3.2078]
[1732892157090,2.21659953,3634.2,3633.6,3.2078]
[1732892157296,0.27502,3633.7,3633.6,3.2078]
[1732892158000,2.21659953,3634.2,3633.6,3.2078]
[1732892158390,5.42439953,3633.8,3633.1,1.2422]
[1732892158594,0.27505,3633.3,3632.4,3.2078]
[1732892158793,0.27509,3632.9,3632.4,3.2078]
[1732892158996,5.42439953,3633.4,3632.4,3.2078]
[1732892159399,10.42439953,3633.4,3632.4,3.2078]
[1732892159699,10.42439953,3633.4,3632.8,3.2078]
[1732892159700,1.3182,3633.3,3632.8,3.2078]
[1732892159894,0.27508,3632.9,3632.8,3.2078]
[1732892160095,0.27506,3633.2,3632.7,3.2078]
[1732892160798,1.3182,3633.3,3632.7,3.2078]
[1732892161096,1.3182,3633.3,3633.1,3.2078]
[1732892161395,0.27508,3633.0,3632.5,3.2078]
[1732892161591,1.3182,3633.3,3632.5,6.7978]
[1732892161791,1.3182,3633.3,3632.1,2.6778]
[1732892161792,2.21659953,3632.6,3632.1,5.8856]
[1732892161997,2.21659953,3632.6,3632.1,3.2078]
[1732892162291,2.21659953,3632.2,3631.3,2.5821]
[1732892162492,2.21659953,3632.2,3631.9,3.2078]
[1732892162493,0.27514,3632.1,3631.9,3.2078]
[1732892162708,0.27515,3632.0,3631.3,2.8573]
[1732892162902,1.3637,3632.1,3631.6,3.2078]
[1732892163095,1.3637,3632.1,3632.0,3.2078]
[1732892163399,2.21659953,3632.2,3632.0,3.2078]
[1732892163593,0.27514,3632.1,3632.0,3.2078]
[1732892164101,2.21659953,3632.2,3631.9,3.2078]
[1732892164303,0.27515,3632.0,3631.9,3.2078]
[1732892164999,2.21659953,3632.2,3631.5,3.2078]
[1732892165192,2.21659953,3631.6,3631.1,3.2078]
[1732892165394,2.21659953,3631.6,3631.5,3.2078]
[1732892165704,3.89561,3632.4,3631.5,3.2078]
[1732892165705,5.42439953,3632.4,3631.5,3.2078]
[1732892166006,0.27516,3632.0,3631.6,1.3789]
[1732892166198,0.27516,3631.9,3631.6,1.3789]
[1732892166396,5.42439953,3632.4,3631.6,1.3789]
[1732892166592,5.42439953,3632.4,3631.5,3.2078]
[1732892167004,0.27516,3631.9,3631.5,3.2078]
[1732892167204,0.27515,3632.0,3631.5,3.2078]
[1732892167404,0.27516,3631.9,3631.5,3.2078]
[1732892167608,0.27518,3631.6,3631.5,3.2078]
[1732892167796,2.21659953,3632.0,3631.5,3.2078]
[1732892168102,2.21659953,3632.0,3631.5,3.48298]
[1732892168103,2.49174953,3632.0,3631.5,3.48298]
[1732892168305,0.27531144,3633.5,3631.9,3.2078]
[1732892168604,2.21659953,3633.3,3633.0,3.2078]
[1732892168797,2.21659953,3633.3,3632.6,3.4829]
[1732892168998,2.21659953,3633.3,3633.0,3.2078]
[1732892169602,2.21659953,3633.7,3633.0,3.2078]
[1732892169902,2.21659953,3634.1,3633.5,3.2078]
[1732892170208,4.22857,3634.4,3633.9,3.2078]
[1732892170402,3.2078,3635.0,3634.3,3.2078]
[1732892170606,2.21659953,3634.7,3634.3,3.2078]
[1732892170898,2.21659953,3634.7,3634.4,3.2078]
[1732892171204,2.49154953,3634.7,3634.4,3.2078]
[1732892171505,0.27496,3634.5,3634.4,3.2078]
[1732892171697,2.21659953,3634.7,3634.4,3.2078]
[1732892171899,2.49191097,3635.1,3634.4,3.2078]
[1732892172098,2.49191097,3635.1,3635.0,3.2078]
[1732892172099,2.76683097,3635.1,3635.0,3.2078]
[1732892172296,0.55023144,3635.1,3635.0,3.2078]
[1732892172706,0.55023144,3635.1,3633.6,40.8]
[1732892172707,0.27494,3634.8,3634.5,3.2078]
[1732892172903,0.27531144,3635.1,3634.5,3.2078]
[1732892173110,0.27531144,3635.1,3634.9,3.2078]
[1732892173317,0.27492,3635.0,3634.9,3.2078]
[1732892173805,0.27531144,3635.1,3634.9,3.2078]
[1732892174800,0.27492,3635.0,3634.9,3.2078]
[1732892175001,0.27531144,3635.1,3634.9,3.2078]
[1732892175312,0.55023144,3635.1,3634.9,3.2078]
[1732892175604,0.27531144,3635.1,3634.9,3.2078]
[1732892176609,0.27492,3635.0,3634.9,3.2078]
[1732892176810,2.61648882,3635.3,3634.9,3.2078]
[1732892177010,2.6629,3635.6,3634.9,3.2078]
[1732892177011,0.2749,3635.4,3634.9,3.2078]
[1732892177205,0.27489,3635.4,3635.3,3.2078]
[1732892178008,2.61648882,3635.7,3635.3,3.2078]
[1732892178205,0.27531144,3635.9,3635.3,3.2078]
[1732892178404,0.27486,3635.8,3635.3,3.2078]
[1732892178607,2.61648882,3636.1,3635.3,3.2078]
[1732892178805,0.27485,3636.0,3635.3,3.4827]
[1732892179002,2.61648882,3636.1,3635.3,3.2078]
[1732892179208,0.50280179,3636.3,3635.3,3.2078]
[1732892179209,2.61648882,3635.7,3635.3,3.2078]
[1732892179508,2.61648882,3635.7,3634.9,3.2078]
[1732892179509,0.27488,3635.6,3634.9,3.2078]
[1732892179709,0.27492,3635.1,3634.9,3.2078]
[1732892179907,3.9001,3635.6,3634.9,3.2078]
[1732892180112,0.27492,3635.0,3634.9,3.2078]
[1732892180607,2.61648882,3635.3,3634.9,3.2078]
[1732892180818,0.27493,3635.0,3634.9,3.2078]
[1732892181005,2.61648882,3635.3,3634.9,3.2078]
[1732892181309,0.27493,3635.0,3634.9,3.2078]
[1732892181608,2.61648882,3635.3,3634.9,3.2078]
[1732892181803,0.27493,3635.0,3634.9,3.2078]
[1732892182008,2.61648882,3635.3,3634.5,3.2078]
[1732892182208,2.61648882,3635.3,3634.5,5.9278]
[1732892182405,3.9001,3635.6,3634.5,5.9278]
[1732892182608,0.27495,3634.9,3634.5,5.9278]
[1732892182808,3.9001,3635.6,3634.5,5.9278]
[1732892183004,0.27496,3634.7,3634.5,5.9278]
[1732892183210,0.27494,3635.0,3634.5,6.20277]
[1732892183509,0.68728,3635.4,3634.5,5.9278]
[1732892183711,0.68728,3635.4,3634.5,2.72]
[1732892183712,2.61648882,3635.3,3634.5,2.72]
[1732892183908,3.2078,3635.4,3634.5,2.72]
[1732892183909,2.61648882,3634.9,3634.5,2.72]
[1732892184109,0.27497,3634.6,3634.5,2.72]
[1732892185311,2.61648882,3634.9,3634.5,2.72]
[1732892185710,0.27497,3634.6,3634.5,2.72]
[1732892186111,2.61648882,3634.9,3634.0,3.2078]
[1732892186112,0.27501,3634.1,3634.0,3.2078]
[1732892186309,3.2078,3634.2,3633.4,1.54456]
[1732892186508,5.33788882,3634.5,3633.7,3.2078]
[1732892186714,0.275,3634.3,3633.7,7.7678]